bitfinex/quotes_SOLUSD_20230903
["timestamp","ask_amount","ask_price","bid_price","bid_amount"]
[1693742503270,20.0,19.457,19.436,25.74922289]
[1693742503471,20.0,19.457,19.437,55.0]
[1693742509178,55.0,19.456,19.437,55.0]
[1693742509475,20.0,19.455,19.437,55.0]
[1693742509672,20.0,19.455,19.434,77.09224417]
[1693742509673,55.0,19.454,19.434,77.09224417]
[1693742509869,20.0,19.455,19.434,77.09224417]
[1693742510092,20.0,19.456,19.434,77.09224417]
[1693742510280,55.0,19.455,19.434,77.09224417]
[1693742510875,55.0,19.455,19.435,55.0]
[1693742512077,20.0,19.456,19.435,80.74922289]
[1693742512277,20.0,19.459,19.436,25.74922289]
[1693742512483,20.0,19.459,19.437,55.0]
[1693742513883,55.0,19.458,19.437,55.0]
[1693742514082,20.0,19.457,19.437,55.0]
[1693742519874,20.0,19.458,19.437,55.0]
[1693742521980,20.0,19.459,19.437,55.0]
[1693742522275,55.0,19.458,19.437,55.0]
[1693742522480,20.0,19.457,19.437,55.0]
[1693742527876,2.0,19.46,19.438,106.0392424]
[1693742528091,2.0,19.46,19.438,225.00784791]
[1693742528282,2.0,19.46,19.439,86.8339]
[1693742528487,2.0,19.46,19.44,45.73409656]
[1693742528677,2.0,19.46,19.441,55.0]
[1693742528884,2.0,19.46,19.442,20.0]
[1693742529086,2.0,19.46,19.443,55.0]
[1693742529294,2.0,19.46,19.444,20.0]
[1693742529490,2.0,19.46,19.445,55.0]
[1693742529675,2.0,19.46,19.444,20.0]
[1693742529878,2.0,19.46,19.441,20.0]
[1693742530082,2.0,19.46,19.442,25.73409656]
[1693742530281,2.0,19.46,19.443,20.0]
[1693742530481,2.0,19.46,19.443,45.73409656]
[1693742530682,2.0,19.46,19.444,25.73409656]
[1693742530996,2.0,19.46,19.445,75.0]
[1693742531293,2.0,19.46,19.445,100.73409656]
[1693742534192,2.0,19.46,19.445,75.0]
[1693742534694,2.0,19.46,19.445,100.73409656]
[1693742535996,2.0,19.46,19.445,142.22380848]
[1693742547398,2.0,19.46,19.445,122.22380848]
[1693742551804,2.0,19.46,19.446,90.73071108]
[1693742552006,2.0,19.46,19.447,55.0]
[1693742552205,2.0,19.46,19.447,80.73409656]
[1693742553698,2.0,19.46,19.447,145.73071108]
[1693742564020,2.0,19.46,19.447,161.14716351]
[1693742564221,10.93519692,19.472,19.447,161.14716351]
[1693742564404,55.0,19.471,19.448,4.49999999]
[1693742564608,55.0,19.472,19.448,4.49999999]
[1693742566414,20.0,19.471,19.448,4.49999999]
[1693742567720,20.0,19.472,19.448,4.49999999]
[1693742567923,35.17737788,19.472,19.448,4.49999999]
[1693742569512,129.19767788,19.472,19.448,4.49999999]
[1693742576018,129.19767788,19.472,19.448,30.23409655]
[1693742576221,129.19767788,19.472,19.449,55.0]
[1693742576519,129.19767788,19.472,19.45,4.49999999]
[1693742577720,94.0203,19.472,19.45,4.49999999]
[1693742577928,94.0203,19.472,19.45,24.49999999]
[1693742578222,94.0203,19.472,19.451,55.0]
[1693742578428,94.0203,19.472,19.452,24.49999999]
[1693742578627,94.0203,19.472,19.453,55.0]
[1693742578825,94.0203,19.472,19.454,24.49999999]
[1693742579125,94.0203,19.472,19.456,4.49999999]
[1693742602941,93.0203,19.472,19.456,4.49999999]
[1693742614652,93.0203,19.472,19.456,59.49999999]
[1693742615058,15.4041131,19.474,19.456,59.49999999]
[1693742615261,95.2141,19.471,19.456,59.49999999]
[1693742615462,55.0,19.473,19.456,59.49999999]
[1693742615663,95.2141,19.472,19.456,59.49999999]
[1693742628363,95.2141,19.472,19.456,4.49999999]
[1693742628567,55.0,19.471,19.456,4.49999999]
[1693742629870,55.0,19.471,19.456,59.49999999]
[1693742633063,55.0,19.471,19.456,4.49999999]
[1693742633263,20.0,19.47,19.453,4.49999999]
[1693742633464,63.012,19.469,19.449,4.49999999]
[1693742633670,20.0,19.468,19.449,4.49999999]
[1693742633867,55.0,19.467,19.449,4.49999999]
[1693742634071,20.0,19.466,19.449,4.49999999]
[1693742634370,97.3794,19.466,19.449,4.49999999]
[1693742634572,20.0,19.465,19.449,59.49999999]
[1693742650284,20.0,19.465,19.449,4.49999999]
[1693742651374,20.0,19.465,19.449,59.49999999]
[1693742652984,20.0,19.465,19.449,85.23409655]
[1693742657485,20.0,19.465,19.45,25.73409656]
[1693742657689,20.0,19.465,19.451,59.49999999]
[1693742663793,97.3794,19.466,19.451,59.49999999]
[1693742663991,20.0,19.465,19.451,59.49999999]
[1693742671802,20.0,19.465,19.451,100.56172838]
[1693742672404,20.0,19.47,19.451,100.56172838]
[1693742672606,55.0,19.469,19.451,100.56172838]
[1693742672905,20.0,19.468,19.451,100.56172838]
[1693742673693,20.0,19.47,19.451,100.56172838]
[1693742673895,55.0,19.469,19.451,100.56172838]
[1693742674094,20.0,19.468,19.451,100.56172838]
[1693742684318,20.0,19.468,19.451,59.49999999]
[1693742685719,28.013,19.468,19.451,59.49999999]
[1693742686021,55.0,19.467,19.451,59.49999999]
[1693742686205,20.0,19.466,19.451,59.49999999]
[1693742687015,20.0,19.466,19.451,4.49999999]
[1693742687201,55.0,19.465,19.449,4.49999999]
[1693742687596,55.0,19.465,19.447,4.49999999]
[1693742688002,97.2786,19.464,19.445,4.49999999]
[1693742688305,55.0,19.463,19.442,50.23409655]
[1693742688505,55.0,19.463,19.445,25.73409656]
[1693742688700,152.2786,19.463,19.446,4.49999999]
[1693742689815,152.2786,19.463,19.446,30.23409655]
[1693742690918,152.2786,19.463,19.448,4.49999999]
[1693742707725,97.2786,19.463,19.448,4.49999999]
[1693742707924,97.2786,19.463,19.448,30.23409655]
[1693742708135,97.2786,19.463,19.449,55.0]
[1693742708425,97.2786,19.463,19.45,4.49999999]
[1693742709009,20.0,19.466,19.45,4.49999999]
[1693742709215,145.5446,19.465,19.45,4.49999999]
[1693742713323,145.5446,19.465,19.45,30.23409655]
[1693742713622,145.5446,19.465,19.45,4.49999999]
[1693742721627,90.5446,19.465,19.45,4.49999999]
[1693742724135,90.0446,19.465,19.45,4.49999999]
[1693742735043,90.0446,19.465,19.45,46.03830332]
[1693742735253,90.0446,19.465,19.451,55.0]
[1693742735447,90.0446,19.465,19.452,4.49999999]
[1693742751363,90.0446,19.465,19.452,20.19254497]
[1693742751565,90.0446,19.465,19.453,55.0]
[1693742751764,90.0446,19.465,19.454,4.49999999]
[1693742776971,90.0446,19.465,19.454,46.00539843]
[1693742777175,90.0446,19.465,19.455,55.0]
[1693742777375,15.5352185,19.47,19.456,4.49999999]
[1693742777579,113.6562,19.469,19.456,4.49999999]
[1693742778182,113.6562,19.469,19.453,4.49999999]
[1693742779365,113.6562,19.469,19.453,59.49999999]
[1693742799302,113.6562,19.469,19.453,100.00179946]
[1693742799802,20.0,19.469,19.453,100.00179946]
[1693742846932,20.0,19.469,19.453,4.49999999]
[1693742849043,20.0,19.469,19.453,59.49999999]
[1693742852144,28.012,19.469,19.453,59.49999999]
[1693742854843,20.0,19.469,19.453,59.49999999]
[1693742879371,55.0,19.468,19.453,4.49999999]
[1693742879684,20.0,19.467,19.453,4.49999999]
[1693742880874,20.0,19.467,19.453,59.49999999]
[1693742886179,20.0,19.467,19.453,4.49999999]
[1693742886367,20.0,19.467,19.453,59.49999999]
[1693742903787,20.0,19.467,19.453,4.49999999]
[1693742904111,63.013,19.466,19.448,4.49999999]
[1693742905395,63.013,19.466,19.448,59.49999999]
[1693742905976,88.904,19.466,19.448,59.49999999]
[1693742908085,63.013,19.466,19.448,59.49999999]
[1693742914099,63.013,19.466,19.446,4.49999999]
[1693742914299,63.013,19.466,19.445,4.49999999]
[1693742914300,133.10701561,19.466,19.445,4.49999999]
[1693742914701,133.10701561,19.466,19.445,59.49999999]
[1693742916607,133.10701561,19.466,19.445,74.95216047]
[1693742917004,174.4815012,19.466,19.445,74.95216047]
[1693742917203,90.98786079,19.465,19.445,4.49999999]
[1693742917409,33.916,19.459,19.439,4.49999999]
[1693742917709,8.019,19.454,19.439,0.06549248]
[1693742917891,8.019,19.454,19.435,19.89660492]
[1693742918087,63.019,19.453,19.436,4.56549247]
[1693742918807,55.0,19.453,19.436,4.56549247]
[1693742919011,55.0,19.454,19.436,4.56549247]
[1693742919907,8.019,19.453,19.436,4.56549247]
[1693742920398,55.0,19.454,19.436,59.56549247]
[1693742920906,63.019,19.454,19.436,59.56549247]
[1693742923603,79.46888116,19.454,19.436,59.56549247]
[1693742923908,16.44988116,19.453,19.436,59.56549247]
[1693742924107,55.0,19.452,19.436,59.56549247]
[1693742925512,63.019,19.452,19.436,59.56549247]
[1693742926708,63.019,19.452,19.436,4.56549247]
[1693742928107,55.0,19.452,19.436,0.06549248]
[1693742928297,63.019,19.453,19.436,0.06549248]
[1693742928699,55.0,19.453,19.436,0.06549248]
[1693742929107,55.0,19.453,19.436,4.56549247]
[1693742929411,63.019,19.453,19.436,4.56549247]
[1693742929615,63.019,19.453,19.436,59.56549247]
[1693742930011,63.019,19.453,19.436,4.56549247]
[1693742932010,79.46888116,19.453,19.436,4.56549247]
[1693742944419,63.019,19.453,19.436,4.56549247]
[1693742953435,79.46888116,19.453,19.436,4.56549247]
[1693742954440,79.46888116,19.453,19.436,4.49999999]
[1693742963952,79.46888116,19.453,19.435,79.49999999]
[1693742965564,16.44988116,19.452,19.435,79.49999999]
[1693742965765,63.02,19.451,19.435,79.49999999]
[1693742967047,79.46988116,19.451,19.43,4.49999999]
[1693742967248,8.022,19.445,19.429,4.49999999]
[1693742967459,55.0,19.444,19.429,4.49999999]
[1693742967765,8.024,19.442,19.427,4.49999999]
[1693742968060,8.024,19.442,19.425,4.49999999]
[1693742968971,159.1242,19.444,19.425,4.49999999]
[1693742969152,8.024,19.442,19.425,4.49999999]
[1693742969353,55.0,19.441,19.425,4.49999999]
[1693742969657,55.0,19.441,19.422,4.49999999]
[1693742970477,63.024,19.441,19.422,4.49999999]
[1693742970964,55.0,19.441,19.422,4.49999999]
[1693742971364,55.0,19.442,19.422,4.49999999]
[1693742971569,55.0,19.442,19.422,59.49999999]
[1693742971753,55.0,19.443,19.422,85.23409655]
[1693742972066,55.0,19.443,19.424,4.49999999]
[1693742972266,55.0,19.443,19.424,59.49999999]
[1693742972468,55.0,19.443,19.426,4.49999999]
[1693742972767,55.0,19.443,19.426,59.49999999]
[1693742976666,63.023,19.443,19.426,4.49999999]
[1693742976869,688.144,19.443,19.426,4.49999999]
[1693742977176,70.59233005,19.442,19.422,4.49999999]
[1693742977357,8.026,19.436,19.416,40.81523416]
[1693742977558,8.026,19.436,19.417,4.49999999]
[1693742977767,8.026,19.436,19.417,0.30875314]
[1693742977961,8.026,19.436,19.416,0.30875314]
[1693742978162,55.0,19.435,19.416,20.14071401]
[1693742978357,8.027,19.434,19.416,20.14071401]
[1693742980555,8.027,19.434,19.418,4.49999999]
[1693742980973,145.1213,19.433,19.418,4.49999999]
[1693742981358,153.1483,19.433,19.418,4.49999999]
[1693742981558,153.1483,19.433,19.417,4.49999999]
[1693742981872,153.1483,19.433,19.417,4.80875313]
[1693742982660,153.1483,19.433,19.419,4.49999999]
[1693742983559,153.1483,19.433,19.413,24.49999999]
[1693742983882,153.1483,19.433,19.414,55.0]
[1693742984080,145.1213,19.433,19.415,24.80875313]
[1693742984376,153.1483,19.433,19.415,24.80875313]
[1693742984553,153.1483,19.433,19.416,55.0]
[1693742984863,153.1483,19.433,19.417,4.49999999]
[1693742990178,145.1213,19.433,19.417,4.49999999]
[1693742992675,145.1213,19.433,19.416,4.49999999]
[1693742992863,145.1213,19.433,19.415,4.49999999]
[1693742993058,90.1213,19.433,19.415,4.49999999]
[1693742994070,90.1213,19.433,19.415,59.49999999]
[1693742994572,55.0,19.432,19.415,59.49999999]
[1693742994776,91.5502,19.432,19.415,59.49999999]
[1693742994965,55.0,19.431,19.415,59.49999999]
[1693742995164,91.5502,19.432,19.415,59.49999999]
[1693743017299,55.0,19.431,19.415,4.49999999]
[1693743017596,63.028,19.431,19.415,4.49999999]
[1693743018796,63.028,19.431,19.415,59.49999999]
[1693743019197,55.0,19.431,19.415,59.49999999]
[1693743051416,91.5502,19.432,19.415,59.49999999]
[1693743058020,91.5502,19.432,19.416,25.73409656]
[1693743058220,91.5502,19.432,19.417,59.49999999]
[1693743072537,91.5502,19.432,19.417,4.49999999]
[1693743072844,55.0,19.431,19.415,4.49999999]
[1693743073941,55.0,19.431,19.415,59.49999999]
[1693743075950,91.5502,19.432,19.415,59.49999999]
[1693743078445,99.5782,19.432,19.415,59.49999999]
[1693743079146,91.5502,19.432,19.415,59.49999999]
[1693743081448,99.5772,19.432,19.415,59.49999999]
[1693743084437,91.5502,19.432,19.415,59.49999999]
[1693743094542,91.5502,19.432,19.415,85.23409655]
[1693743108647,99.5782,19.432,19.415,85.23409655]
[1693743109351,99.5782,19.432,19.415,30.23409655]
[1693743110765,99.5782,19.432,19.416,55.0]
[1693743110958,99.5782,19.432,19.417,4.49999999]
[1693743111565,91.5502,19.432,19.417,4.49999999]
[1693743113564,99.5782,19.432,19.417,4.49999999]
[1693743123766,91.5502,19.432,19.417,4.49999999]
[1693743145796,99.5782,19.432,19.417,4.49999999]
[1693743146695,91.5502,19.432,19.417,4.49999999]
[1693743162707,91.5502,19.432,19.418,25.73409656]
[1693743162914,91.5502,19.432,19.419,59.49999999]
[1693743163098,91.5502,19.432,19.419,85.23409655]
[1693743166217,91.5502,19.432,19.42,25.73409656]
[1693743166509,91.5502,19.432,19.421,59.49999999]
[1693743177920,91.5502,19.432,19.422,55.0]
[1693743178123,91.5502,19.432,19.423,4.49999999]
[1693743178424,91.5502,19.432,19.421,4.49999999]
[1693743186430,90.3502,19.432,19.421,4.49999999]
[1693743188030,98.3782,19.432,19.421,4.49999999]
[1693743189430,90.3502,19.432,19.421,4.49999999]
[1693743191340,98.3782,19.432,19.421,4.49999999]
[1693743191633,98.3782,19.432,19.417,4.49999999]
[1693743191833,98.3782,19.432,19.416,4.49999999]
[1693743192227,124.3142,19.432,19.415,4.49999999]
[1693743193435,124.3142,19.432,19.415,59.49999999]
[1693743194834,98.3782,19.432,19.415,59.49999999]
[1693743196329,90.3502,19.432,19.415,59.49999999]
[1693743196635,98.3782,19.432,19.415,59.49999999]
[1693743198433,55.0,19.431,19.415,59.49999999]
[1693743198733,63.028,19.431,19.415,59.49999999]
[1693743199327,55.0,19.431,19.415,59.49999999]
[1693743202637,55.0,19.431,19.415,4.49999999]
[1693743202942,63.028,19.431,19.415,4.49999999]
[1693743203242,63.028,19.431,19.414,4.49999999]
[1693743204430,63.028,19.431,19.414,59.49999999]
[1693743204631,63.028,19.431,19.415,20.0]
[1693743204937,63.028,19.431,19.416,4.49999999]
[1693743209550,63.028,19.431,19.414,4.49999999]
[1693743209754,63.028,19.431,19.414,59.49999999]
[1693743210055,63.028,19.431,19.416,4.49999999]
[1693743211548,55.0,19.431,19.416,4.49999999]
[1693743213047,63.028,19.431,19.416,4.49999999]
[1693743216656,74.92653,19.431,19.414,4.49999999]
[1693743218258,115.7133477,19.431,19.414,4.49999999]
[1693743228161,115.7133477,19.431,19.407,84.22388555]
[1693743228162,11.88697,19.43,19.413,4.49999999]
[1693743228468,8.03,19.428,19.409,30.23409655]
[1693743228765,75.0,19.427,19.409,30.23409655]
[1693743229155,83.03,19.427,19.409,30.23409655]
[1693743229556,90.1961,19.426,19.411,4.49999999]
[1693743229756,55.0,19.425,19.411,4.49999999]
[1693743233270,63.031,19.425,19.411,4.49999999]
[1693743236371,55.0,19.425,19.411,4.49999999]
[1693743238569,63.031,19.425,19.411,4.49999999]
[1693743245765,63.031,19.425,19.41,59.49999999]
[1693743246260,63.031,19.425,19.408,4.49999999]
[1693743246864,63.031,19.425,19.406,4.49999999]
[1693743247271,63.031,19.425,19.406,30.23409655]
[1693743247488,99.2263,19.424,19.407,55.0]
[1693743247675,55.0,19.423,19.408,4.49999999]
[1693743249364,63.031,19.423,19.408,4.49999999]
[1693743255391,74.90652,19.423,19.407,4.49999999]
[1693743264992,66.87552,19.423,19.407,4.49999999]
[1693743266692,74.90652,19.423,19.407,4.49999999]
[1693743268999,19.90652,19.423,19.407,4.49999999]
[1693743269505,19.90652,19.423,19.407,59.49999999]
[1693743270493,55.0,19.422,19.407,59.49999999]
[1693743270699,8.032,19.421,19.407,59.49999999]
[1693743270892,55.0,19.422,19.407,59.49999999]
[1693743271087,63.032,19.422,19.407,59.49999999]
[1693743271805,63.032,19.422,19.407,4.49999999]
[1693743278812,63.032,19.422,19.404,4.49999999]
[1693743279008,63.032,19.422,19.404,79.49999999]
[1693743280015,55.0,19.422,19.405,25.73409656]
[1693743280208,55.0,19.422,19.406,59.49999999]
[1693743281010,55.0,19.422,19.406,85.23409655]
[1693743281312,96.82586294,19.422,19.406,85.23409655]
[1693743281713,55.0,19.422,19.406,85.23409655]
[1693743283712,91.1953,19.424,19.406,85.23409655]
[1693743283925,55.0,19.423,19.407,25.73409656]
[1693743284216,154.4465,19.423,19.408,59.49999999]
[1693743292018,154.4465,19.423,19.408,4.49999999]
[1693743292205,154.4465,19.423,19.405,24.49999999]
[1693743292521,154.4465,19.423,19.406,55.0]
[1693743292819,154.4465,19.423,19.407,4.49999999]
[1693743293022,154.4465,19.423,19.406,59.49999999]
[1693743293207,154.4465,19.423,19.406,4.49999999]
[1693743293404,154.4465,19.423,19.406,59.49999999]
[1693743293607,162.4775,19.423,19.406,59.49999999]
[1693743293823,162.4775,19.423,19.406,4.49999999]
[1693743294517,204.87538116,19.423,19.406,4.49999999]
[1693743295626,204.87538116,19.423,19.405,4.49999999]
[1693743295808,204.87538116,19.423,19.405,59.49999999]
[1693743296831,204.87538116,19.423,19.405,4.49999999]
[1693743297133,8.034,19.418,19.405,4.49999999]
[1693743297525,8.033,19.419,19.399,4.49999999]
[1693743297921,55.0,19.418,19.399,4.49999999]
[1693743298325,91.686,19.417,19.399,59.49999999]
[1693743298528,91.686,19.417,19.4,20.0]
[1693743298825,91.686,19.417,19.401,59.49999999]
[1693743299326,91.686,19.417,19.402,20.0]
[1693743299620,91.686,19.417,19.403,59.49999999]
[1693743299823,91.686,19.417,19.404,20.0]
[1693743300027,91.686,19.417,19.405,4.49999999]
[1693743302320,91.686,19.417,19.401,4.49999999]
[1693743303324,91.686,19.417,19.401,59.49999999]
[1693743303525,91.686,19.417,19.402,20.0]
[1693743303725,91.686,19.417,19.403,59.49999999]
[1693743303918,91.686,19.417,19.404,20.0]
[1693743304119,91.686,19.417,19.405,4.49999999]
[1693743305113,8.035,19.415,19.405,4.49999999]
[1693743305428,91.686,19.417,19.405,4.49999999]
[1693743306137,55.0,19.416,19.401,4.49999999]
[1693743307434,55.0,19.416,19.401,59.49999999]
[1693743307736,55.0,19.416,19.402,20.0]
[1693743307927,55.0,19.416,19.403,4.49999999]
[1693743313441,91.686,19.417,19.403,4.49999999]
[1693743313630,91.686,19.417,19.403,59.49999999]
[1693743313837,91.686,19.417,19.404,20.0]
[1693743314039,91.686,19.417,19.405,4.49999999]
[1693743319843,55.0,19.416,19.405,4.49999999]
[1693743320049,55.0,19.416,19.401,4.49999999]
[1693743320248,55.0,19.416,19.401,59.49999999]
[1693743320450,55.0,19.416,19.402,20.0]
[1693743320748,55.0,19.416,19.403,4.49999999]
[1693743321148,91.686,19.417,19.403,4.49999999]
[1693743321335,91.686,19.417,19.403,59.49999999]
[1693743321535,91.686,19.417,19.404,20.0]
[1693743321741,91.686,19.417,19.405,4.49999999]
[1693743326851,20.0,19.416,19.405,4.49999999]
[1693743327049,168.7273,19.416,19.397,4.49999999]
[1693743327253,176.7613,19.416,19.396,4.49999999]
[1693743328455,176.7613,19.416,19.396,59.49999999]
[1693743332643,202.7183,19.416,19.396,59.49999999]
[1693743333537,229.63868797,19.416,19.396,59.49999999]
[1693743333951,246.08856913,19.416,19.396,59.49999999]
[1693743335864,118.3489512,19.415,19.396,4.49999999]
[1693743336056,8.037,19.41,19.396,4.49999999]
[1693743336458,55.0,19.409,19.396,4.49999999]
[1693743336666,63.037,19.409,19.396,4.49999999]
[1693743340166,20.0,19.408,19.396,4.49999999]
[1693743340356,8.039,19.406,19.392,4.49999999]
[1693743340552,8.039,19.406,19.392,59.49999999]
[1693743360067,8.039,19.406,19.392,4.49999999]
[1693743360266,8.039,19.406,19.385,24.49999999]
[1693743360480,8.039,19.406,19.386,55.0]
[1693743360668,8.039,19.406,19.387,4.49999999]
[1693743365366,55.0,19.405,19.387,4.49999999]
[1693743365578,8.041,19.401,19.386,4.49999999]
[1693743365881,8.04,19.402,19.386,4.49999999]
[1693743366182,8.04,19.403,19.386,4.49999999]
[1693743366767,8.04,19.403,19.386,59.49999999]
[1693743370178,8.04,19.403,19.387,25.73409656]
[1693743370378,8.04,19.403,19.388,59.49999999]
[1693743370584,8.04,19.403,19.388,85.23409655]
[1693743371081,8.04,19.403,19.388,30.23409655]
[1693743372871,8.04,19.403,19.389,55.0]
[1693743373083,8.04,19.403,19.39,4.49999999]
[1693743373467,55.0,19.402,19.39,4.49999999]
[1693743373672,8.041,19.4,19.389,4.49999999]
[1693743374374,8.041,19.4,19.386,4.49999999]
[1693743374575,8.041,19.4,19.384,24.49999999]
[1693743374786,8.041,19.4,19.385,55.0]
[1693743374970,8.041,19.4,19.386,4.49999999]
[1693743380778,90.3034,19.404,19.386,30.23409655]
[1693743380985,90.3034,19.404,19.387,80.73409656]
[1693743381272,90.3034,19.404,19.388,4.49999999]
[1693743381481,156.29743537,19.409,19.388,4.49999999]
[1693743381682,8.039,19.404,19.388,4.49999999]
[1693743383978,8.04,19.401,19.388,4.49999999]
[1693743389688,8.04,19.402,19.388,4.49999999]
[1693743389888,8.04,19.401,19.388,4.49999999]
[1693743391492,55.0,19.403,19.388,4.49999999]
[1693743392398,8.04,19.402,19.388,4.49999999]
[1693743408896,55.0,19.401,19.385,4.49999999]
[1693743409101,8.041,19.4,19.385,59.49999999]
[1693743415217,55.0,19.401,19.385,59.49999999]
[1693743415513,63.041,19.401,19.385,59.49999999]
[1693743424326,55.0,19.401,19.385,59.49999999]
[1693743427527,94.0681,19.407,19.385,143.95402625]
[1693743427731,94.0681,19.407,19.386,84.45402626]
[1693743427936,94.0681,19.407,19.387,59.49999999]
[1693743427937,20.0,19.406,19.387,59.49999999]
[1693743428234,20.0,19.406,19.388,25.73409656]
[1693743428528,20.0,19.406,19.389,59.49999999]
[1693743428724,20.0,19.409,19.39,25.73409656]
[1693743428928,20.0,19.409,19.391,59.49999999]
[1693743429520,55.0,19.408,19.391,59.49999999]
[1693743429730,20.0,19.407,19.391,59.49999999]
[1693743430718,20.0,19.407,19.391,85.23409655]
[1693743430929,20.0,19.408,19.391,85.23409655]
[1693743431530,8.038,19.408,19.391,85.23409655]
[1693743431830,20.0,19.407,19.391,85.23409655]
[1693743432733,28.037,19.409,19.391,85.23409655]
[1693743434529,20.0,19.409,19.392,25.73409656]
[1693743434731,20.0,19.409,19.394,4.49999999]
[1693743435240,28.037,19.409,19.394,4.49999999]
[1693743436638,54.004,19.409,19.394,4.49999999]
[1693743441337,55.0,19.408,19.394,4.49999999]
[1693743441536,8.039,19.404,19.387,4.49999999]
[1693743442427,8.039,19.404,19.387,59.49999999]
[1693743443245,8.039,19.404,19.387,85.23409655]
[1693743446142,34.013,19.404,19.387,30.23409655]
[1693743446341,55.0,19.403,19.387,4.49999999]
[1693743446534,34.022,19.399,19.385,4.49999999]
[1693743447136,8.041,19.399,19.385,4.49999999]
[1693743448448,34.03,19.395,19.378,30.23409655]
[1693743449442,8.045,19.39,19.378,30.23409655]
[1693743450038,56.713,19.396,19.378,30.23409655]
[1693743450249,45.982,19.398,19.379,25.73409656]
[1693743450436,8.043,19.396,19.38,59.49999999]
[1693743450637,8.043,19.396,19.381,25.73409656]
[1693743450838,8.043,19.396,19.382,59.49999999]
[1693743465958,8.043,19.396,19.382,4.49999999]
[1693743466165,55.0,19.395,19.382,4.49999999]
[1693743466367,8.044,19.392,19.377,4.49999999]
[1693743467462,55.0,19.391,19.377,4.49999999]
[1693743467663,63.045,19.391,19.377,4.49999999]
[1693743468368,8.044,19.392,19.377,30.23409655]
[1693743469451,8.044,19.392,19.378,55.0]
[1693743469659,8.044,19.392,19.379,4.49999999]
[1693743470567,55.0,19.391,19.379,4.49999999]
[1693743470753,63.045,19.391,19.378,4.49999999]
[1693743474870,55.0,19.391,19.378,4.49999999]
[1693743476067,63.044,19.391,19.378,4.49999999]
[1693743479877,20.0,19.39,19.378,4.49999999]
[1693743480067,8.046,19.387,19.372,30.23409655]
[1693743480261,20.0,19.386,19.373,55.0]
[1693743480465,20.0,19.386,19.374,4.49999999]
[1693743481077,20.0,19.386,19.373,55.0]
[1693743481260,28.047,19.386,19.373,55.0]
[1693743481464,28.047,19.386,19.374,2.3983068]
[1693743482068,28.047,19.386,19.373,2.6239054]
[1693743482268,28.047,19.386,19.373,57.6239054]
[1693743483266,8.047,19.386,19.373,2.6239054]
[1693743484583,55.0,19.385,19.373,2.6239054]
[1693743485169,63.047,19.385,19.373,2.6239054]
[1693743486483,8.047,19.385,19.373,2.6239054]
[1693743492388,28.048,19.384,19.373,2.6239054]
[1693743493884,8.049,19.382,19.373,2.6239054]
[1693743494093,8.049,19.382,19.368,4.49999999]
[1693743495276,8.049,19.382,19.368,59.49999999]
[1693743495676,8.049,19.382,19.368,4.49999999]
[1693743495982,8.05,19.379,19.368,4.49999999]
[1693743498495,75.0,19.378,19.36,4.49999999]
[1693743498793,75.0,19.378,19.359,1.0842555]
[1693743498794,8.052,19.373,19.359,1.0842555]
[1693743498987,97.099,19.377,19.359,1.0842555]
[1693743499192,8.051,19.376,19.359,1.0842555]
[1693743499386,20.0,19.375,19.359,1.0842555]
[1693743499996,20.0,19.376,19.359,1.0842555]
[1693743500194,28.051,19.376,19.359,1.0842555]
[1693743500399,28.051,19.376,19.359,56.0842555]
[1693743500598,20.0,19.376,19.36,4.49999999]
[1693743500809,20.0,19.376,19.36,59.49999999]
[1693743500993,28.051,19.376,19.36,59.49999999]
[1693743504903,8.051,19.376,19.36,59.49999999]